fUSD/lending_fUSD_20260404
["ID","MTS","AMOUNT","RATE_DAILY","PERIOD"]
[419732797,1775343071234,-639.67244347,0.00035616,9]
[419732798,1775343071243,-505.9717698,0.00035616,9]
[419732799,1775343071253,-500.0,0.00035616,9]
[419732800,1775343071263,-2038.61,0.00035616,9]
[419732801,1775343071273,-500.0,0.00035616,9]
[419732802,1775343071282,-630.23,0.00035616,9]
[419732803,1775343071292,-500.0,0.00035616,9]
[419732804,1775343071301,-500.0,0.00035616,9]
[419732805,1775343071310,-500.0,0.00035616,9]
[419732806,1775343071319,-500.0,0.00035616,9]
[419732807,1775343071329,-500.0,0.00035616,9]
[419732808,1775343071338,-500.0,0.00035616,9]
[419732809,1775343071347,-500.0,0.00035616,9]
[419732810,1775343071356,-500.0,0.00035616,9]
[419732811,1775343071365,-500.0,0.00035616,9]
[419732812,1775343071375,-500.0,0.00035616,9]
[419732813,1775343071384,-500.0,0.00035616,9]
[419732814,1775343071393,-3114.85,0.00035616,9]
[419732815,1775343071402,-500.0,0.00035616,9]
[419732816,1775343071411,-500.0,0.00035616,9]
[419732817,1775343071421,-500.0,0.00035616,9]
[419732818,1775343071430,-500.0,0.00035616,9]
[419732819,1775343071439,-992.42,0.00035616,9]
[419732820,1775343071448,-512.58251243,0.00035616,9]
[419732821,1775343071458,-500.0,0.00035616,9]
[419732822,1775343071468,-286.89523471,0.00035616,9]
[419732823,1775343071477,-500.0,0.00035616,9]
[419732824,1775343071486,-500.0,0.00035616,9]
[419732825,1775343071496,-1254.96,0.00035616,9]
[419732826,1775343071505,-500.0,0.00035616,9]
[419732827,1775343071515,-500.0,0.00035616,9]
[419732828,1775343071524,-1661.44,0.00035616,9]
[419732829,1775343071534,-3768.31,0.00035616,9]
[419732830,1775343071543,-500.0,0.00035616,9]
[419732831,1775343071553,-500.0,0.00035616,9]
[419732832,1775343071562,-500.0,0.00035616,9]
[419732833,1775343071572,-500.0,0.00035616,9]
[419732834,1775343071581,-379.18015981,0.00035616,9]
[419732835,1775343071590,-513.516864,0.00035616,9]
[419732836,1775343071600,-500.0,0.00035616,9]
[419732837,1775343071610,-2807.28,0.00035616,9]
[419732838,1775343071619,-500.0,0.00035616,9]
[419732839,1775343071629,-2513.82,0.00035616,9]
[419732840,1775343071638,-2883.13,0.00035616,9]
[419732841,1775343071647,-500.0,0.00035616,9]
[419732842,1775343071657,-1264.22,0.00035616,9]
[419732843,1775343071667,-500.23984807,0.00035616,9]
[419732844,1775343071677,-1362.88,0.00035616,9]
[419732845,1775343071686,-717.54,0.00035616,9]
[419732846,1775343071696,-507.12985443,0.00035616,9]
[419732847,1775343071706,-500.0,0.00035616,9]
[419732848,1775343071716,-500.0,0.00035616,9]
[419732849,1775343071725,-500.0,0.00035616,9]
[419732850,1775343071735,-500.0,0.00035616,9]
[419732851,1775343071744,-760.58,0.00035616,9]
[419732852,1775343071754,-522.3692304,0.00035616,9]
[419732853,1775343071763,-500.0,0.00035616,9]
[419732854,1775343071773,-500.0,0.00035616,9]
[419732855,1775343071783,-500.0,0.00035616,9]
[419732856,1775343071792,-500.0,0.00035616,9]
[419732857,1775343071801,-1119.27,0.00035616,9]
[419732858,1775343071811,-500.0,0.00035616,9]
[419732859,1775343071820,-1202.47,0.00035616,9]
[419732860,1775343071829,-500.0,0.00035616,9]
[419732861,1775343071840,-500.0,0.00035616,9]
[419732862,1775343071849,-1518.99,0.00035616,9]
[419732863,1775343071859,-500.0,0.00035616,9]
[419732864,1775343071869,-737.11,0.00035616,9]
[419732865,1775343071878,-1708.09,0.00035616,9]
[419732866,1775343071888,-500.0,0.00035616,9]
[419732867,1775343071898,-500.0,0.00035616,9]
[419732868,1775343071908,-500.0,0.00035616,9]
[419732869,1775343071917,-225.21883941,0.00035616,9]
[419732870,1775343071927,-500.0,0.00035616,9]
[419732871,1775343071936,-602.16,0.00035616,9]
[419732872,1775343071946,-500.0,0.00035616,9]
[419732873,1775343071956,-500.0,0.00035616,9]
[419732874,1775343071966,-1174.03,0.00035616,9]
[419732875,1775343071975,-500.0,0.00035616,9]
[419732876,1775343071984,-4790.68,0.00035616,9]
[419732877,1775343071994,-1578.44,0.00035616,9]
[419732878,1775343072003,-500.0,0.00035616,9]
[419732879,1775343072013,-1232.34,0.00035616,9]
[419732880,1775343072023,-2167.44,0.00035616,4]
[419732881,1775343072032,-500.0,0.00035616,9]
[419732882,1775343072043,-500.0,0.00035616,9]
[419732883,1775343072052,-500.0,0.00035616,9]
[419732884,1775343072062,-181.9982508,0.00035616,9]
[419732885,1775343072071,-710.33,0.00035616,9]
[419732886,1775343072083,-500.0,0.00035616,9]
[419732887,1775343072093,-500.0,0.00035616,9]
[419732888,1775343072102,-502.66,0.00035616,9]
[419732889,1775343072112,-631.97,0.00035616,9]
[419732890,1775343072124,-500.0,0.00035616,9]
[419732891,1775343072133,-500.0,0.00035616,9]
[419732892,1775343072145,-500.0,0.00035616,9]
[419732893,1775343072154,-646.23269439,0.00035616,9]
[419732894,1775343072165,-500.0,0.00035616,9]
[419732895,1775343072175,-500.0,0.00035616,9]
[419732896,1775343072185,-500.0,0.00035616,9]
[419732897,1775343072196,-500.0,0.00035616,9]
[419732898,1775343072205,-500.0,0.00035616,9]
[419732899,1775343072216,-815.63,0.00035616,9]
[419732900,1775343072226,-500.0,0.00035616,9]
[419732901,1775343072236,-500.0,0.00035616,9]
[419732902,1775343072245,-636.91,0.00035616,9]
[419732903,1775343072255,-500.0,0.00035616,9]
[419732904,1775343072264,-1283.14,0.00035616,9]
[419732905,1775343072274,-500.0,0.00035616,9]
[419732906,1775343072283,-500.0,0.00035616,9]
[419732907,1775343072292,-500.0,0.00035616,9]
[419732908,1775343072302,-500.0,0.00035616,9]
[419732909,1775343072311,-500.0,0.00035616,9]
[419732910,1775343072320,-500.0,0.00035616,9]
[419732911,1775343072332,-3422.2,0.00035616,9]
[419732912,1775343072343,-566.21,0.00035616,9]
[419732913,1775343072354,-757.91,0.00035616,9]
[419732914,1775343072364,-1000.0,0.00035616,9]
[419732915,1775343072374,-500.0,0.00035616,9]
[419732916,1775343072384,-500.0,0.00035616,9]
[419732917,1775343072394,-500.0,0.00035616,9]
[419732918,1775343072403,-500.0,0.00035616,9]
[419732919,1775343072413,-500.0,0.00035616,9]
[419732920,1775343072422,-235.62467231,0.00035616,9]
[419732921,1775343072432,-500.0,0.00035616,9]
[419732922,1775343072442,-500.0,0.00035616,9]
[419732923,1775343072451,-500.0,0.00035616,9]
[419732924,1775343072461,-500.0,0.00035616,9]
[419732925,1775343072470,-500.0,0.00035616,9]
[419732926,1775343072479,-497.46966558,0.00035616,9]
[419732927,1775343072489,-590.75,0.00035616,7]
[419732928,1775343072499,-500.0,0.00035616,9]
[419732929,1775343072509,-541.14556203,0.00035616,9]
[419732930,1775343072519,-500.0,0.00035616,9]
[419732931,1775343072528,-500.0,0.00035616,9]
[419732932,1775343072538,-11946.99,0.00035616,9]
[419732933,1775343072547,-500.0,0.00035616,9]
[419732934,1775343072556,-500.0,0.00035616,9]
[419732935,1775343072566,-500.0,0.00035616,9]
[419732936,1775343072575,-500.0,0.00035616,9]
[419732937,1775343072584,-500.0,0.00035616,9]
[419732938,1775343072593,-1241.17,0.00035616,9]
[419732939,1775343072602,-3214.44,0.00035616,9]
[419732940,1775343072611,-500.0,0.00035616,9]
[419732941,1775343072621,-500.0,0.00035616,9]
[419732942,1775343072630,-1755.97,0.00035616,9]
[419732943,1775343072639,-500.0,0.00035616,9]
[419732944,1775343072648,-2719.79,0.00035616,9]
[419732945,1775343072657,-674.73,0.00035616,9]
[419732946,1775343072667,-500.0,0.00035616,9]
[419732947,1775343072676,-150.31095151,0.00035616,9]
[419732948,1775343072687,-500.0,0.00035616,9]
[419732949,1775343072696,-500.0,0.00035616,9]
[419732950,1775343072706,-784.99,0.00035616,9]
[419732951,1775343072715,-478.43784171,0.00035616,9]
[419732952,1775343072724,-500.0,0.00035616,9]
[419732953,1775343072733,-500.0,0.00035616,9]
[419732954,1775343072742,-500.0,0.00035616,9]
[419732955,1775343072751,-500.0,0.00035616,9]
[419732956,1775343072761,-500.0,0.00035616,9]
[419732957,1775343072771,-817.74,0.00035616,9]
[419732958,1775343072780,-760.94,0.00035616,9]
[419732959,1775343072790,-500.0,0.00035616,9]
[419732960,1775343072800,-4317.74,0.00035616,9]
[419732961,1775343072809,-502.62964829,0.00035616,9]
[419732962,1775343072819,-500.0,0.00035616,9]
[419732963,1775343072828,-1006.53,0.00035616,9]
[419732964,1775343072837,-500.0,0.00035616,9]
[419732965,1775343072846,-500.0,0.00035616,9]
[419732966,1775343072856,-500.0,0.00035616,9]
[419732967,1775343072865,-607.55,0.00035616,9]
[419732968,1775343072875,-500.0,0.00035616,9]
[419732969,1775343072883,-890.81,0.00035616,9]
[419732970,1775343072892,-500.0,0.00035616,9]
[419732971,1775343072902,-500.0,0.00035616,9]
[419732972,1775343072911,-500.0,0.00035616,9]
[419732973,1775343072920,-1083.89,0.00035616,9]
[419732974,1775343072929,-500.0,0.00035616,9]
[419732975,1775343072938,-500.0,0.00035616,9]
[419732976,1775343072947,-500.0,0.00035616,9]
[419732977,1775343072957,-700.12,0.00035616,9]
[419732978,1775343072967,-644.51,0.00035616,9]
[419732979,1775343072976,-500.0,0.00035616,9]
[419732980,1775343072985,-500.0,0.00035616,9]
[419732981,1775343072995,-500.0,0.00035616,9]
[419732982,1775343073004,-500.0,0.00035616,9]
[419732983,1775343073014,-517.62491903,0.00035616,9]
[419732984,1775343073023,-500.0,0.00035616,9]
[419732985,1775343073032,-151.11859336,0.00035616,9]
[419732986,1775343073042,-500.0,0.00035616,9]
[419732987,1775343073260,-500.0,0.00035616,9]
[419732988,1775343073271,-536.92411876,0.00035616,9]
[419732989,1775343073281,-500.0,0.00035616,9]
[419732990,1775343073290,-567.35,0.00035616,9]
[419732991,1775343073300,-500.0,0.00035616,9]
[419732992,1775343073310,-1237.51,0.00035616,9]
[419732993,1775343073319,-500.0,0.00035616,9]
[419732994,1775343073328,-500.0,0.00035616,9]
[419732995,1775343073337,-847.19,0.00035616,9]
[419732996,1775343073424,-500.0,0.00035616,9]
[419732997,1775343073434,-1584.33,0.00035616,9]
[419732998,1775343073444,-500.0,0.00035616,9]
[419732999,1775343073454,-500.0,0.00035616,9]
[419733000,1775343073464,-500.0,0.00035616,9]
[419733001,1775343073474,-204.31969448,0.00035616,9]
[419733002,1775343073484,-781.03,0.00035616,9]
[419733003,1775343073493,-503.76062131,0.00035616,9]
[419733004,1775343073503,-500.0,0.00035616,9]
[419733005,1775343073512,-500.0,0.00035616,9]
[419733006,1775343073522,-500.0,0.00035616,9]
[419733007,1775343073532,-500.0,0.00035616,9]
[419733008,1775343073541,-500.0,0.00035616,9]
[419733009,1775343073551,-500.0,0.00035616,9]
[419733010,1775343073560,-500.0,0.00035616,9]
[419733011,1775343073570,-500.0,0.00035616,9]
[419733012,1775343073580,-377.9163253,0.00035616,9]
[419733013,1775343073590,-1247.28,0.00035616,9]
[419733014,1775343073599,-503.86108155,0.00035616,9]
[419733015,1775343073608,-506.41178125,0.00035616,9]
[419733016,1775343073618,-500.0,0.00035616,9]
[419733017,1775343073628,-501.1634619,0.00035616,9]
[419733018,1775343073637,-324.36675634,0.00035616,9]
[419733019,1775343073647,-908.11,0.00035616,9]
[419733020,1775343073657,-500.0,0.00035616,9]
[419733021,1775343073667,-500.0,0.00035616,9]
[419733022,1775343073676,-1607.03,0.00035616,9]
[419733023,1775343073686,-500.0,0.00035616,9]
[419733024,1775343073695,-1003.23,0.00035616,9]
[419733025,1775343073705,-5585.72,0.00035616,9]
[419733026,1775343073715,-225.10974701,0.00035616,9]
[419733027,1775343073725,-500.0,0.00035616,9]
[419733028,1775343073734,-410.81537497,0.00035616,9]
[419733029,1775343073743,-792.99,0.00035616,9]
[419733030,1775343073754,-461.81001186,0.00035616,9]
[419733031,1775343073763,-500.0,0.00035616,9]
[419733032,1775343073773,-500.0,0.00035616,9]
[419733033,1775343073782,-2071.62,0.00035616,9]
[419733034,1775343073793,-434.16312782,0.00035616,9]
[419733035,1775343073802,-500.0,0.00035616,9]
[419733036,1775343073812,-516.39,0.00035616,9]
[419733037,1775343073821,-1569.44,0.00035616,9]
[419733038,1775343073831,-1006.27,0.00035616,9]
[419733039,1775343073841,-552.08,0.00035616,9]
[419733040,1775343073851,-500.0,0.00035616,9]
[419733041,1775343073860,-500.0,0.00035616,9]
[419733042,1775343073870,-500.0,0.00035616,9]
[419733043,1775343073881,-272.219417,0.00035616,7]
[419733044,1775343073890,-500.0,0.00035616,9]
[419733045,1775343073900,-500.0,0.00035616,9]
[419733046,1775343073909,-272.219417,0.00035616,7]
[419733047,1775343073918,-1354.05,0.00035616,9]
[419733048,1775343073928,-272.219417,0.00035616,7]
[419733049,1775343073938,-500.0,0.00035616,9]
[419733050,1775343073947,-500.0,0.00035616,9]
[419733051,1775343073957,-167.329132,0.00035616,7]
[419733052,1775343073967,-500.0,0.00035616,9]
[419733053,1775343073976,-272.219412,0.00035616,7]
[419733054,1775343073986,-500.0,0.00035616,9]
[419733055,1775343073996,-206.088054,0.00035616,7]
[419733056,1775343074005,-503.92723662,0.00035616,9]
[419733057,1775343074015,-167.329132,0.00035616,7]
[419733058,1775343074024,-500.0,0.00035616,9]
[419733059,1775343074034,-914.54,0.00035616,9]
[419733060,1775343074043,-500.0,0.00035616,9]
[419733061,1775343074052,-1902.51,0.00035616,9]
[419733062,1775343074062,-500.0,0.00035616,9]
[419733063,1775343074071,-206.088054,0.00035616,7]
[419733064,1775343074082,-500.0,0.00035616,9]
[419733065,1775343074092,-500.0,0.00035616,9]
[419733066,1775343074102,-2136.66,0.00035616,9]
[419733067,1775343074112,-167.329132,0.00035616,7]
[419733068,1775343074121,-500.0,0.00035616,9]
[419733069,1775343074131,-500.0,0.00035616,2]
[419733070,1775343074140,-206.088054,0.00035616,7]
[419733071,1775343074149,-537.58359973,0.00035616,9]
[419733072,1775343074158,-500.0,0.00035616,9]
[419733073,1775343074167,-500.0,0.00035616,9]
[419733074,1775343074176,-1000.0,0.00035616,120]
[419733075,1775343074185,-151.0,0.00035616,7]
[419733076,1775343074194,-151.0,0.00035616,7]
[419733077,1775343074203,-151.0,0.00035616,7]
[419733078,1775343074212,-151.0,0.00035616,7]
[419733079,1775343074221,-151.0,0.00035616,7]
[419733080,1775343074230,-151.0,0.00035616,7]
[419733081,1775343074239,-151.0,0.00035616,7]
[419733082,1775343074248,-151.0,0.00035616,7]
[419733083,1775343074257,-151.0,0.00035616,7]
[419733084,1775343074266,-151.0,0.00035616,7]
[419733085,1775343074275,-151.0,0.00035616,7]
[419733086,1775343074284,-151.0,0.00035616,7]
[419733087,1775343074294,-151.0,0.00035616,7]
[419733088,1775343074303,-244.432452,0.00035616,7]
[419733089,1775343074314,-200.0,0.00035616,30]
[419733090,1775343074324,-313.0,0.00035616,30]
[419733091,1775343074333,-1000.0,0.00035677,7]
[419733092,1775343074343,-160.9357,0.000357,14]
[419733093,1775343074353,-6923.43,0.000357,2]
[419733094,1775343074362,-741.783597,0.00035726,9]
[419733095,1775343074372,-654.429761,0.00035726,9]
[419733096,1775343074382,-500.0,0.00035726,9]
[419733097,1775343074392,-568.25812068,0.00035726,9]
[419733098,1775343074402,-500.0,0.00035726,9]
[419733099,1775343074411,-181.55913433,0.00035726,9]
[419733100,1775343074420,-500.0,0.00035726,9]
[419733101,1775343074430,-500.0,0.00035726,9]
[419733102,1775343074439,-500.0,0.00035726,9]
[419733103,1775343074448,-500.0,0.00035726,9]
[419733104,1775343074458,-500.0,0.00035726,9]
[419733105,1775343074467,-507.56062075,0.00035726,9]
[419733106,1775343074476,-500.0,0.00035726,9]
[419733107,1775343074486,-500.0,0.00035726,9]
[419733108,1775343074495,-500.0,0.00035726,9]
[419733109,1775343074505,-500.0,0.00035726,9]
[419733110,1775343074514,-500.0,0.00035726,9]
[419733111,1775343074523,-500.0,0.00035726,9]
[419733112,1775343074532,-500.0,0.00035726,9]
[419733113,1775343074542,-500.0,0.00035726,9]
[419733114,1775343074551,-500.0,0.00035726,9]
[419733115,1775343074560,-500.0,0.00035726,9]
[419733116,1775343074569,-500.71119114,0.00035726,9]
[419733117,1775343074579,-500.0,0.00035726,9]
[419733118,1775343074588,-500.0,0.00035726,9]
[419733119,1775343074596,-500.0,0.00035726,9]
[419733120,1775343074605,-500.0,0.00035726,9]
[419733121,1775343074614,-500.0,0.00035726,9]
[419733122,1775343074623,-500.0,0.00035726,9]
[419733123,1775343074632,-500.0,0.00035726,9]
[419733124,1775343074641,-500.0,0.00035726,9]
[419733125,1775343074650,-500.0,0.00035726,9]
[419733126,1775343074660,-500.0,0.00035726,9]
[419733127,1775343074669,-500.0,0.00035726,9]
[419733128,1775343074678,-500.0,0.00035726,9]
[419733129,1775343074687,-1368.38,0.00035726,9]
[419733130,1775343074697,-521.44,0.00035726,9]
[419733131,1775343074706,-500.0,0.00035726,9]
[419733132,1775343074715,-500.0,0.00035726,9]
[419733133,1775343074724,-500.0,0.00035726,9]
[419733134,1775343074733,-500.0,0.00035726,9]
[419733135,1775343074743,-500.0,0.00035726,9]
[419733136,1775343074752,-500.0,0.00035726,9]
[419733137,1775343074761,-500.0,0.00035726,9]
[419733138,1775343074770,-500.0,0.00035726,9]
[419733139,1775343074779,-500.0,0.00035726,9]
[419733140,1775343074788,-500.0,0.00035726,9]
[419733141,1775343074797,-500.0,0.00035726,9]
[419733142,1775343074806,-630.01,0.00035726,9]
[419733143,1775343074815,-500.0,0.00035726,9]
[419733144,1775343074824,-504.57953485,0.00035726,9]
[419733145,1775343074833,-500.0,0.00035726,9]
[419733146,1775343074842,-500.0,0.00035726,9]
[419733147,1775343074851,-500.0,0.00035726,9]
[419733148,1775343074860,-500.0,0.00035726,9]
[419733149,1775343074870,-500.0,0.00035726,9]
[419733150,1775343074879,-500.0,0.00035726,9]
[419733151,1775343074889,-500.0,0.00035726,9]
[419733152,1775343074899,-500.0,0.00035726,9]
[419733153,1775343074910,-500.0,0.00035726,9]
[419733154,1775343074919,-500.0,0.00035726,9]
[419733155,1775343074928,-500.0,0.00035726,9]
[419733156,1775343074937,-500.0,0.00035726,9]
[419733157,1775343074947,-500.0,0.00035726,9]
[419733158,1775343074956,-427.07627587,0.00035726,9]
[419733159,1775343074967,-559.76,0.00035726,9]
[419733160,1775343074976,-500.0,0.00035726,9]
[419733161,1775343074985,-500.0,0.00035726,9]
[419733162,1775343074994,-500.0,0.00035726,9]
[419733163,1775343075003,-500.0,0.00035726,9]
[419733164,1775343075013,-500.0,0.00035726,9]
[419733165,1775343075021,-500.0,0.00035726,9]
[419733166,1775343075031,-500.0,0.00035726,9]
[419733167,1775343075042,-500.0,0.00035726,9]
[419733168,1775343075052,-500.0,0.00035726,2]
[419733169,1775343075061,-500.0,0.00035726,9]
[419733170,1775343075070,-500.0,0.00035726,9]
[419733171,1775343075081,-500.0,0.00035726,9]
[419733172,1775343075090,-500.0,0.00035726,9]
[419733173,1775343075100,-500.0,0.00035726,9]
[419733174,1775343075109,-500.0,0.00035726,9]
[419733175,1775343075119,-500.0,0.00035726,9]
[419733176,1775343075128,-500.0,0.00035726,9]
[419733177,1775343075137,-500.0,0.00035726,9]
[419733178,1775343075146,-500.0,0.00035726,9]
[419733179,1775343075155,-500.0,0.00035726,9]
[419733180,1775343075164,-500.0,0.00035726,9]
[419733181,1775343075174,-500.0,0.00035726,9]
[419733182,1775343075184,-500.0,0.00035726,9]
[419733183,1775343075194,-500.0,0.00035726,9]
[419733184,1775343075203,-500.0,0.00035726,9]
[419733185,1775343075213,-500.0,0.00035726,9]
[419733186,1775343075223,-500.0,0.00035726,9]
[419733187,1775343075232,-390.25674374,0.00035726,9]
[419733188,1775343075241,-500.0,0.00035726,9]
[419733189,1775343075250,-372.18325352,0.00035726,9]
[419733190,1775343075259,-500.0,0.00035726,9]
[419733191,1775343075268,-500.0,0.00035726,9]
[419733192,1775343075277,-500.0,0.00035726,9]
[419733193,1775343075287,-500.0,0.00035726,9]
[419733194,1775343075297,-1434.73,0.00035726,9]
[419733195,1775343075306,-500.0,0.00035726,9]
[419733196,1775343075315,-500.0,0.00035726,9]
[419733197,1775343075325,-500.0,0.00035726,9]
[419733198,1775343075334,-500.0,0.00035726,9]
[419733199,1775343075344,-500.0,0.00035726,9]
[419733200,1775343075353,-1103.18,0.00035726,9]
[419733201,1775343075362,-500.0,0.00035726,9]
[419733202,1775343075371,-500.0,0.00035726,9]
[419733203,1775343075383,-500.0,0.00035726,9]
[419733204,1775343075393,-500.0,0.00035726,9]
[419733205,1775343075403,-210.41470465,0.00035726,9]
[419733206,1775343075414,-500.0,0.00035726,9]
[419733207,1775343075425,-500.0,0.00035726,9]
[419733208,1775343075434,-1284.69,0.00035726,9]
[419733209,1775343075443,-500.0,0.00035726,9]
[419733210,1775343075453,-623.34029343,0.00035726,9]
[419733211,1775343075463,-500.0,0.00035726,9]
[419733212,1775343075474,-523.51213223,0.00035726,9]
[419733213,1775343075484,-500.0,0.00035726,9]
[419733214,1775343075495,-500.0,0.00035726,9]
[419733215,1775343075505,-500.0,0.00035726,9]
[419733216,1775343075515,-500.0,0.00035726,9]
[419733217,1775343075527,-215.61618847,0.00035726,9]
[419733218,1775343075538,-500.0,0.00035726,9]
[419733219,1775343075547,-500.0,0.00035726,9]
[419733220,1775343075556,-168.32446531,0.00035726,9]
[419733221,1775343075566,-500.0,0.00035726,9]
[419733222,1775343075576,-500.0,0.00035726,9]
[419733223,1775343075585,-500.0,0.00035726,9]
[419733224,1775343075594,-500.0,0.00035726,9]
[419733225,1775343075604,-500.0,0.00035726,9]
[419733226,1775343075615,-500.0,0.00035726,9]
[419733227,1775343075624,-500.0,0.00035726,9]
[419733228,1775343075633,-500.0,0.00035726,9]
[419733229,1775343075642,-500.0,0.00035726,9]
[419733230,1775343075652,-500.0,0.00035726,9]
[419733231,1775343075661,-500.0,0.00035726,9]
[419733232,1775343075671,-500.0,0.00035726,9]
[419733233,1775343075680,-951.26,0.00035726,9]
[419733234,1775343075690,-500.0,0.00035726,9]
[419733235,1775343075699,-500.0,0.00035726,9]
[419733236,1775343075708,-500.0,0.00035726,9]
[419733237,1775343075718,-500.0,0.00035726,9]
[419733238,1775343075728,-500.0,0.00035726,9]
[419733239,1775343075737,-500.0,0.00035726,9]
[419733240,1775343075747,-903.83,0.00035726,9]
[419733241,1775343075757,-500.0,0.00035726,9]
[419733242,1775343075768,-500.0,0.00035726,9]
[419733243,1775343075778,-500.0,0.00035726,9]
[419733244,1775343075788,-349.08828662,0.00035726,9]
[419733245,1775343075797,-500.0,0.00035726,9]
[419733246,1775343075807,-500.0,0.00035726,9]
[419733247,1775343075816,-500.0,0.00035726,9]
[419733248,1775343075826,-1363.05,0.00035726,9]
[419733249,1775343075836,-500.0,0.00035726,9]
[419733250,1775343075846,-500.0,0.00035726,9]
[419733251,1775343075855,-500.0,0.00035726,9]
[419733252,1775343075865,-500.0,0.00035726,9]
[419733253,1775343075875,-500.0,0.00035726,9]
[419733254,1775343075885,-1024.58,0.00035726,9]
[419733255,1775343075894,-500.0,0.00035726,9]
[419733256,1775343075904,-500.0,0.00035726,9]
[419733257,1775343075913,-500.0,0.00035726,9]
[419733258,1775343075923,-500.0,0.00035726,9]
[419733259,1775343075933,-500.0,0.00035726,9]
[419733260,1775343075943,-345.19997936,0.00035726,9]
[419733261,1775343075953,-500.0,0.00035726,9]
[419733262,1775343075962,-1374.86,0.00035726,9]
[419733263,1775343075971,-500.0,0.00035726,9]
[419733264,1775343075982,-500.0,0.00035726,9]
[419733265,1775343075992,-502.47882634,0.00035726,9]
[419733266,1775343076002,-510.14071476,0.00035726,9]
[419733267,1775343076012,-500.0,0.00035726,9]
[419733268,1775343076021,-500.0,0.00035726,9]
[419733269,1775343076031,-507.91086187,0.00035726,9]
[419733270,1775343076044,-500.0,0.00035726,9]
[419733271,1775343076055,-500.0,0.00035726,9]
[419733272,1775343076065,-500.0,0.00035726,9]
[419733273,1775343076077,-442.88896211,0.00035726,9]
[419733274,1775343076087,-628.54,0.00035726,9]
[419733275,1775343076097,-500.0,0.00035726,9]
[419733276,1775343076108,-500.0,0.00035726,9]
[419733277,1775343076118,-500.0,0.00035726,9]
[419733278,1775343076128,-500.0,0.00035726,9]
[419733279,1775343076138,-500.0,0.00035726,9]
[419733280,1775343076147,-1192.56,0.00035726,9]
[419733281,1775343076158,-500.0,0.00035726,9]
[419733282,1775343076169,-500.0,0.00035726,9]
[419733283,1775343076179,-500.0,0.00035726,9]
[419733284,1775343076190,-500.0,0.00035726,9]
[419733285,1775343076200,-1287.3,0.00035726,9]
[419733286,1775343076210,-500.0,0.00035726,9]
[419733287,1775343076219,-531.21,0.00035726,9]
[419733288,1775343076229,-500.0,0.00035726,9]
[419733289,1775343076238,-500.0,0.00035726,9]
[419733290,1775343076248,-500.0,0.00035726,9]
[419733291,1775343076257,-500.0,0.00035726,9]
[419733292,1775343076267,-500.0,0.00035726,9]
[419733293,1775343076277,-500.0,0.00035726,9]
[419733294,1775343076287,-500.0,0.00035726,9]
[419733295,1775343076296,-500.0,0.00035726,9]
[419733296,1775343076306,-500.0,0.00035726,9]